Cogmind - Beta 15 @@@ ROGUE MODE // 2025.07.22 @ 10:14:29 Player: beans Result: Destroyed by P-60 Hacker with Shock Rifle Performance ------------- Evolutions (2) 1000 Regions Visited (7) 1400 Robots Destroyed (83) 415 Value Destroyed (2003) 2003 Prototype IDs (2) 40 Alien Tech Used (0) 0 Bonus (998) 998 TOTAL SCORE: 5856 Bonus ------- Follower Combat Kills 98 Entered Garrisons 400 Used RIF Installer 500 Cogmind --------- Core Integrity 0/550 Matter 268/300 Energy 100/100 System Corruption 0% Temperature Cool (18) Movement Core (150) Ox2 Location -8/Garrison Parts ------- > --- POWER (2) -------- (None) > --- PROPULSION (2) --- (None) > --- UTILITY (5) ------ Targeting Computer Targeting Computer Improved Targeting Computer > --- WEAPON (2) ------- Minigun Rocket Launcher > --- INVENTORY (5) ---- Signal Interpreter Thief Drone Bay (3/3) High-powered Shotgun High-powered Shotgun Peak State ------------ > --- POWER ------------ Light Nuclear Core Light Nuclear Core > --- PROPULSION ------- Aluminum Leg Aluminum Leg > --- UTILITY ---------- Compact Matter Pod Targeting Computer Targeting Computer Improved Targeting Computer Thief Drone Bay > --- WEAPON ----------- High-powered Shotgun High-powered Shotgun > --- INVENTORY -------- Compact Matter Pod Signal Interpreter Minigun Minigun Rocket Launcher [Rating: 29] Favorites ----------- Power Light Nuclear Core Engine Ion Engine Power Core Light Nuclear Core Propulsion Light Treads Treads Light Treads Leg Aluminum Leg Utility Targeting Computer Device Thief Drone Bay Storage Small Storage Unit Processor Targeting Computer Weapon High-powered Shotgun Energy Gun Small Laser Ballistic Gun High-powered Shotgun Launcher Grenade Launcher Build | -11 -10 -9 -9 -8 -8 -8 -8 ------- Run | Yrd Mat Mat Min Mat Gar Mat Gar Slots Evolved 4 | . . 2 . 2 . . . Power 1 | . . . . 1 . . . Propulsion . | . . . . . . . . Utility 3 | . . 2 . 1 . . . Weapon . | . . . . . . . . Parts Attached 34 | 5 3 14 1 1 . . 10 Power 5 | 1 . 1 . . . . 3 Engine 1 | 1 . . . . . . . Core 4 | . . 1 . . . . 3 Reactor . | . . . . . . . . Propulsion 8 | 2 . 4 . . . . 2 Treads 6 | 2 . 4 . . . . . Leg 2 | . . . . . . . 2 Wheel . | . . . . . . . . Hover . | . . . . . . . . Flight . | . . . . . . . . Utility 9 | 1 1 3 1 1 . . 2 Device 1 | . . . . 1 . . . Storage 3 | 1 . . . . . . 2 Processor 5 | . 1 3 1 . . . . Hackware . | . . . . . . . . Protection . | . . . . . . . . Artifact . | . . . . . . . . Weapon 12 | 1 2 6 . . . . 3 Energy Gun 3 | 1 1 1 . . . . . Energy Cannon . | . . . . . . . . Ballistic Gun 7 | . . 4 . . . . 3 Ballistic Cannon . | . . . . . . . . Launcher 2 | . 1 1 . . . . . Special Weapon . | . . . . . . . . Impact Weapon . | . . . . . . . . Slashing Weapon . | . . . . . . . . Piercing Weapon . | . . . . . . . . Special Melee Weapon . | . . . . . . . . Unidentified Prototypes 2 | . . 1 . 1 . . . Parts Lost 23 | . 6 4 1 . 1 . 11 Power 5 | . 1 . 1 . . . 3 Propulsion 8 | . 2 2 . . 1 . 3 Utility 3 | . . . . . . . 3 Weapon 7 | . 3 2 . . . . 2 Highest Loss Streak 5 | . 5 4 1 . 1 . 4 To Critical Strikes . | . . . . . . . . Average Backups 6 | . 5 7 7 7 6 7 5 Power . | . . . . . . . . Propulsion . | . . . . . . . . Utility 3 | . 4 3 4 4 3 4 2 Weapon 2 | . . 3 3 3 3 3 3 Tool/Special . | . . . . . . . . Unused Backups 10 | 1 . 1 2 . 4 . 2 Power . | . . . . . . . . Propulsion . | . . . . . . . . Utility 8 | . . . 2 . 4 . 2 Weapon 2 | 1 . 1 . . . . . Tool/Special . | . . . . . . . . Average Slot Usage (%) 83 | . 79 76 96 81 78 72 75 Engine 2 | . 11 . . . . . . Core 3 | . . 2 8 . . . 6 Treads 16 | . 25 9 22 18 15 9 2 Device 2 | . . . . 9 9 9 6 Storage 11 | . 14 11 11 9 9 9 9 Processor 27 | . 10 32 33 27 27 27 27 Energy Gun 2 | . 14 . . . . . . Ballistic Gun 16 | . . 20 21 18 18 18 18 Peak Build Rating 29 | 5 7 16 17 21 21 20 29 Average Rating 14 | 3 5 12 16 21 20 20 21 On Entrance 12 | . 5 2 15 14 21 20 20 Naked Turns . | . . . . . . . . Heaviest Build 21 | 11 12 17 17 15 15 15 21 Greatest Support 40 | 40 40 40 40 40 40 20 20 Greatest Overweight (x) 5 | . 1 5 . . . . 4 Average Overweight (x) . | . . 1 . . . . 1 Largest Inventory Capacity 8 | 8 8 8 8 8 8 8 8 Average Capacity 7 | 6 8 8 8 8 8 8 6 Most Carried 8 | 5 7 8 8 7 7 8 8 Average Carried 6 | . 5 7 7 7 6 7 5 Final Capacity 8 | 8 8 8 8 8 8 8 5 Final Carried 8 | . 6 6 8 7 7 8 4 Class Distribution -------------------- 97% | Mutant Dominant Class ---------------- Mutant | -10/Materials Mutant | -9/Materials Mutant | -9/Mines Mutant | -8/Materials Mutant | -8/Garrison Mutant | -8/Materials Mutant | -8/Garrison Resources | -11 -10 -9 -9 -8 -8 -8 -8 ----------- Run | Yrd Mat Mat Min Mat Gar Mat Gar Matter Collected 1613 | 250 30 807 149 . 130 . 247 Remotely . | . . . . . . . . Salvage Created 2557 | . 430 1168 207 . 238 . 514 Parts 175 | . 39 79 14 . 16 . 27 Haulers Intercepted 3 | . . 3 . . . . . Recyclers Shooed . | . . . . . . . . Parts Field Recycled . | . . . . . . . . Retrieved Matter . | . . . . . . . . Parts Self-Destructed . | . . . . . . . . Prevented . | . . . . . . . . Kills | -11 -10 -9 -9 -8 -8 -8 -8 ------- Run | Yrd Mat Mat Min Mat Gar Mat Gar Combat Hostiles Destroyed 57 | . 11 20 4 . 7 . 15 Guns 50 | . 8 18 4 . 7 . 13 AOE 7 | . 3 2 . . . . 2 Classes Destroyed 11 | . 5 4 1 . . . 1 Worker 10 | . 4 5 1 . . . . Builder 6 | . 3 2 1 . . . . Tunneler 3 | . . 1 2 . . . . Hauler 3 | . . 3 . . . . . Recycler 3 | . . 3 . . . . . Watcher 1 | . 1 . . . . . . Swarmer 17 | . 5 6 1 . 2 . 3 Grunt 29 | . 6 11 1 . 4 . 7 Duelist 3 | . . . 1 . . . 2 Sentry 6 | . . 3 1 . 1 . 1 Programmer 2 | . . . . . . . 2 Best Kill Streak 11 | . 9 11 2 . 3 . 6 Combat Bots Only 6 | . 3 4 2 . 3 . 6 Max Kills in Single Turn 2 | . 2 2 1 . 1 . 2 Gunslinging 1 | . . 1 . . . . . Exploded 2 | . 1 2 . . . . 2 Melee . | . . . . . . . . Uniques/NPCs Destroyed . | . . . . . . . . Combat | -11 -10 -9 -9 -8 -8 -8 -8 -------- Run | Yrd Mat Mat Min Mat Gar Mat Gar Hostile Shots Fired 347 | . 93 104 16 . 16 . 118 Missed 100 | . 24 34 5 . 5 . 32 Hits 247 | . 69 70 11 . 11 . 86 Melee 10 | . . . . . . . 10 Projectile 237 | . 69 70 11 . 11 . 76 Critical Strikes 8 | . . 4 . . . . 4 Damage Taken 3365 | . 819 797 96 . 154 . 1499 Core 931 | . 200 175 . . 42 . 514 Absorbed by Shields . | . . . . . . . . Core Remaining (%) 58 | 100 20 . 56 . . . . Volleys Fired 203 | . 57 77 10 . 15 . 44 Largest 2 | . 2 2 2 . 2 . 2 Hottest 80 | . 80 50 50 . 50 . 50 Shots Fired 342 | . 62 146 20 . 30 . 84 Gun 328 | . 51 145 20 . 30 . 82 Cannon . | . . . . . . . . Launcher 14 | . 11 1 . . . . 2 Special . | . . . . . . . . Kinetic 277 | . . 145 20 . 30 . 82 Thermal 51 | . 51 . . . . . . Explosive 14 | . 11 1 . . . . 2 Electromagnetic . | . . . . . . . . Robot Hit Streak 20 | . 12 11 6 . 10 . 20 Robot Miss Streak 8 | . 2 8 2 . 4 . 4 Penetration Max . | . . . . . . . . Secondary Targets 7 | . . 3 . . . . 4 Max Gunslinging Chain 1 | . . 1 . . . . 1 Shots Hit Robots 240 | . 41 88 15 . 23 . 73 Core Hits 134 | . 30 44 13 . 14 . 33 Critical Kills 1 | . . . . . . . 1 Critical Parts Destroyed 1 | . . . . . . . 1 Critical Strikes 2 | . . . . . . . 2 Destroy 2 | . . . . . . . 2 Melee Attacks . | . . . . . . . . Impact . | . . . . . . . . Slashing . | . . . . . . . . Piercing . | . . . . . . . . Sneak Attacks . | . . . . . . . . Combat Hostiles . | . . . . . . . . Follow-up Attacks . | . . . . . . . . Damage Inflicted 4867 | . 950 1571 321 . 435 . 1590 Guns 3968 | . 429 1403 321 . 435 . 1380 Cannons . | . . . . . . . . Explosions 899 | . 521 168 . . . . 210 Melee . | . . . . . . . . Ramming . | . . . . . . . . Kinetic 3539 | . . 1403 321 . 435 . 1380 Thermal 429 | . 429 . . . . . . Explosive 899 | . 521 168 . . . . 210 Electromagnetic . | . . . . . . . . Impact . | . . . . . . . . Slashing . | . . . . . . . . Piercing . | . . . . . . . . Highest Corruption 1 | . 1 . . . . . . Average Corruption 1 | . 1 . . . . . . Corruption Purged . | . . . . . . . . Corruption Blocked . | . . . . . . . . Overload Shots . | . . . . . . . . Overflow Damage 111 | . 61 50 . . . . . Projectiles . | . . . . . . . . Explosions 111 | . 61 50 . . . . . Melee . | . . . . . . . . Knockbacks . | . . . . . . . . Impact . | . . . . . . . . Kinetic . | . . . . . . . . Secondary . | . . . . . . . . Self-Inflicted Damage 135 | . 81 . . . . . 54 Shots 6 | . 4 . . . . . 2 Rammed . | . . . . . . . . Targets Rammed . | . . . . . . . . Kicked . | . . . . . . . . Crushed . | . . . . . . . . Highest Temperature 93 | . 93 30 . . . . 31 Average Temperature 23 | . 39 11 . . . . 5 Received Heat Transfer 1143 | . 306 381 6 . 81 . 369 Siege Activations . | . . . . . . . . Martial Activations . | . . . . . . . . Shielding Activations . | . . . . . . . . Robots Disrupted . | . . . . . . . . Combat Hostiles . | . . . . . . . . Robots Corrupted . | . . . . . . . . Combat Hostiles . | . . . . . . . . Parts Fried . | . . . . . . . . Impact Corruptions . | . . . . . . . . Robots Melted . | . . . . . . . . Combat Hostiles . | . . . . . . . . Parts Melted 3 | . 2 . . . 1 . . Heat Transferred 975 | . 975 . . . . . . Parts Sabotaged . | . . . . . . . . Parts Stolen . | . . . . . . . . Parts Stripped . | . . . . . . . . Power Chain Reactions . | . . . . . . . . Alert | -11 -10 -9 -9 -8 -8 -8 -8 ------- Run | Yrd Mat Mat Min Mat Gar Mat Gar Maximum Alert Level 1 | . . 1 . . . . 1 Low Security (%) 93 | 100 100 83 100 100 100 100 80 Level 1 6 | . . 16 . . . . 19 Level 2 . | . . . . . . . . Level 3 . | . . . . . . . . Level 4 . | . . . . . . . . Level 5 . | . . . . . . . . High Security . | . . . . . . . . Max Security . | . . . . . . . . Peak Influence 293 | . 167 293 140 33 166 80 269 Initial 111 | . . 47 111 33 14 80 39 Average 69 | . 37 83 40 32 105 71 146 Influence Increases 1766 | . 382 592 230 . 202 . 360 Destroy 0b10 Robot/C 1260 | . 220 400 140 . 180 . 320 Destroy 0b10 Robot/NC 130 | . 40 70 20 . . . . Destroy Leader 178 | . 42 96 20 . . . 20 Allied During Kill 59 | . . . 35 . 22 . 2 Disable Machine 45 | . 15 15 15 . . . . Destroy Structure 64 | . 50 11 . . . . 3 Lose Combat Pursuer 30 | . 15 . . . . . 15 Influence Decreases 1497 | . 269 418 430 64 59 106 151 Entered New Map 412 | . . 66 176 54 9 86 21 Time Decay 795 | . 209 312 244 10 . 20 . Lost Part 230 | . 60 40 10 . 10 . 110 Lost Ally 60 | . . . . . 40 . 20 Squads Dispatched 5 | . 3 2 . . . . . Investigation 2 | . 2 . . . . . . Extermination . | . . . . . . . . Reinforcement 3 | . 1 2 . . . . . Assault . | . . . . . . . . Garrison . | . . . . . . . . Intercept . | . . . . . . . . Searches Triggered . | . . . . . . . . Construction Impeded 1 | . . 1 . . . . . Haulers Reinforced . | . . . . . . . . Active Scanning Responses . | . . . . . . . . Cargo Convoy Interrupts . | . . . . . . . . Stealth | -11 -10 -9 -9 -8 -8 -8 -8 --------- Run | Yrd Mat Mat Min Mat Gar Mat Gar Distress Signals 4 | . 2 1 . . . 1 . Communications Jammed . | . . . . . . . . Distress Signals . | . . . . . . . . Times Spotted 83 | . 19 25 7 . 10 1 21 Peak Tracking Total 7 | . 5 5 4 . 4 2 7 Tactical Retreats 2 | . 1 . . . . . 1 Traps | -11 -10 -9 -9 -8 -8 -8 -8 ------- Run | Yrd Mat Mat Min Mat Gar Mat Gar Traps Triggered 8 | . 3 2 . . . . 3 Indirectly . | . . . . . . . . Trap Hack Attempts . | . . . . . . . . Triggered . | . . . . . . . . Disarmed . | . . . . . . . . Reprogrammed . | . . . . . . . . Reused . | . . . . . . . . Traps Extracted . | . . . . . . . . Installed . | . . . . . . . . Triggered . | . . . . . . . . Machines | -11 -10 -9 -9 -8 -8 -8 -8 ---------- Run | Yrd Mat Mat Min Mat Gar Mat Gar Machines Disabled 3 | . 1 1 1 . . . . Max in Single Turn 1 | . 1 1 1 . . . . Machines Repaired . | . . . . . . . . Machines Dismantled . | . . . . . . . . Machines Sabotaged . | . . . . . . . . Overloaded Fab Kills . | . . . . . . . . Hacking | -11 -10 -9 -9 -8 -8 -8 -8 --------- Run | Yrd Mat Mat Min Mat Gar Mat Gar Machines Accessed 3 | . . . 1 1 . 1 . Terminals . | . . . . . . . . Fabricators . | . . . . . . . . Repair Stations . | . . . . . . . . Recycling Units . | . . . . . . . . Scanalyzers . | . . . . . . . . Garrison Access 2 | . . . . 1 . 1 . Total Hacks 3 | . . . 1 1 . 1 . Successful 3 | . . . 1 1 . 1 . Failed . | . . . . . . . . Catastrophic . | . . . . . . . . Database Lockouts . | . . . . . . . . Manual . | . . . . . . . . Terminals . | . . . . . . . . Fabricators . | . . . . . . . . Repair Stations . | . . . . . . . . Recycling Units . | . . . . . . . . Scanalyzers . | . . . . . . . . Garrison Access 2 | . . . . 1 . 1 . Terminal Hacks 1 | . . . 1 . . . . Open Door 1 | . . . 1 . . . . Fabricator Hacks . | . . . . . . . . Repair Station Hacks . | . . . . . . . . Recycling Unit Hacks . | . . . . . . . . Scanalyzer . | . . . . . . . . Garrison Access Hacks 2 | . . . . 1 . 1 . Unlock Access 2 | . . . . 1 . 1 . Unauthorized Hacks . | . . . . . . . . Terminals . | . . . . . . . . Fabricators . | . . . . . . . . Repair Stations . | . . . . . . . . Recycling Units . | . . . . . . . . Scanalyzers . | . . . . . . . . Garrison Access . | . . . . . . . . Data Cores Recovered . | . . . . . . . . Used . | . . . . . . . . Hacking Detections 1 | . . . . . . 1 . Full Trace Events . | . . . . . . . . Feedback Events . | . . . . . . . . Feedback Blocked . | . . . . . . . . Robot Schematics Acquired . | . . . . . . . . Robots Built . | . . . . . . . . Authchips . | . . . . . . . . Time . | . . . . . . . . Total Robot Build Rating . | . . . . . . . . Part Schematics Acquired . | . . . . . . . . Parts Built . | . . . . . . . . Authchips . | . . . . . . . . Time . | . . . . . . . . Total Part Build Rating . | . . . . . . . . Parts Repaired . | . . . . . . . . Time . | . . . . . . . . Parts Recycled . | . . . . . . . . Recycled Matter . | . . . . . . . . Retrieved Matter . | . . . . . . . . Retrieved Components . | . . . . . . . . Parts Scanalyzed . | . . . . . . . . Part Schematics Acquired . | . . . . . . . . Parts Damaged . | . . . . . . . . Bothacking | -11 -10 -9 -9 -8 -8 -8 -8 ------------ Run | Yrd Mat Mat Min Mat Gar Mat Gar Used RIF Installer 1 | . . . . . 1 . . Robots Hacked . | . . . . . . . . Non-combat . | . . . . . . . . Combat . | . . . . . . . . Robot Hacks Applied . | . . . . . . . . Relay Couplers Released . | . . . . . . . . Fabnet Peak Effective % . | . . . . . . . . Robots Rewired . | . . . . . . . . Allies Hacked . | . . . . . . . . Hacks Repelled . | . . . . . . . . Allies | -11 -10 -9 -9 -8 -8 -8 -8 -------- Run | Yrd Mat Mat Min Mat Gar Mat Gar Total Allies 4 | . . . 4 . . . . Largest Group 4 | . . . 4 3 3 1 1 Highest-Rated Group 71 | . . . 71 40 40 16 16 Highest-Rated Ally 31 | . . . 31 16 16 16 16 Total Orders . | . . . . . . . . Ally Attacks 34 | . . . 4 . 22 . 8 Total Damage 397 | . . . 40 . 237 . 120 Kills 6 | . . . 3 . 2 . 1 Allies Corrupted . | . . . . . . . . Allies Melted . | . . . . . . . . Intel | -11 -10 -9 -9 -8 -8 -8 -8 ------- Run | Yrd Mat Mat Min Mat Gar Mat Gar Active Infowar (turns) . | . . . . . . . . Robot Analysis Total . | . . . . . . . . Derelict Logs Recovered 2 | . . . 2 . . . . Drone Launches . | . . . . . . . . Drone Recoveries . | . . . . . . . . Exploration | -11 -10 -9 -9 -8 -8 -8 -8 ------------- Run | Yrd Mat Mat Min Mat Gar Mat Gar Turns Passed 3955 | 87 747 928 1202 20 405 51 515 Spaces Moved 1939 | 46 378 359 706 10 208 31 201 Core 343 | 24 46 195 . . . . 78 Treads 1530 | 22 332 164 706 10 208 31 57 Legs 66 | . . . . . . . 66 Wheels . | . . . . . . . . Hover . | . . . . . . . . Flight . | . . . . . . . . Fastest Speed 50 | 50 100 100 160 160 160 160 120 Average Speed 164 | 102 152 187 160 160 160 160 180 Slowest Speed 300 | 160 160 300 160 160 160 160 250 Overloaded Moves . | . . . . . . . . Propulsion Burnouts . | . . . . . . . . Robots Hopped . | . . . . . . . . Potential Cave-ins . | . . . . . . . . Cave-ins Triggered . | . . . . . . . . Exploration Rate (%) 31 | 5 59 36 96 3 30 8 18 Regions Visited 7 Branch Regions 1 Pre-discovered Areas . | . . . . . . . . Known Exits Taken 2 | . . . . 1 . 1 . Unknown Exits Taken 4 | 1 1 1 1 . . . . Scrap Searched 4 | . . . 4 . . . . Spaces Dug . | . . . . . . . . Terrain Destroyed 62 | . 51 8 . . . . 3 Melee . | . . . . . . . . Projectile . | . . . . . . . . AOE 62 | . 51 8 . . . . 3 Terrain Rammed . | . . . . . . . . Walls Destroyed . | . . . . . . . . Machines Disabled . | . . . . . . . . Actions | -11 -10 -9 -9 -8 -8 -8 -8 --------- Run | Yrd Mat Mat Min Mat Gar Mat Gar Total 2387 | 86 485 485 760 14 253 32 272 Wait 144 | 29 38 15 35 4 21 . 2 Move 1933 | 45 377 358 705 9 207 31 201 Hop . | . . . . . . . . Pick Up 39 | 6 9 12 5 . 5 1 1 Fast Attach 14 | . . 8 . . . . 6 Attach 24 | 5 3 11 1 1 . . 3 Detach . | . . . . . . . . Swap 8 | . 1 1 1 . . . 5 Drop 12 | 1 . 3 3 . 5 . . Fire 203 | . 57 77 10 . 15 . 44 Melee . | . . . . . . . . Ram . | . . . . . . . . Kick . | . . . . . . . . Crush . | . . . . . . . . Escape Stasis 10 | . . . . . . . 10 Rewire . | . . . . . . . . Trap . | . . . . . . . . Miscellaneous . | . . . . . . . . Route ------- -11/Scrapyard -10/Materials (discovered 3 exits: [*Mat x2] / [*Sub]) -9/Materials (discovered 3 exits: *Mat / *Min x2) -9/Mines (discovered 2 exits: *Mat x2) -8/Materials -8/Garrison -8/Materials -8/Garrison (discovered 1 exit: [*Mat]) History --------- Turn | Location | Event 62 | -11/Scrapyard | Discovered new exit (range 15) 88 | -11/Scrapyard | Entered Materials 300 | -10/Materials | Build established: Mutant 327 | -10/Materials | Discovered new exit (range 10) 490 | -10/Materials | Discovered new exit (range 5) 748 | -10/Materials | Discovered new exit (range 15) 786 | -10/Materials | Core integrity fell below 50% 820 | -10/Materials | Lost 5 parts (2n3w) 835 | -10/Materials | Entered another Materials area 835 | -9/Materials | Evolved 2 slots: Utility x2 1153 | -9/Materials | Discovered new exit (range 4) 1526 | -9/Materials | Lost 4 parts (2n2w) 1542 | -9/Materials | Discovered new exit (range 16) 1733 | -9/Materials | Discovered new exit (range 15) 1763 | -9/Materials | Entered Mines 1836 | -9/Mines | Assisted by bots powering up and referring to "LRC-V3" 1986 | -9/Mines | Learned 2 Materials zone layouts 2031 | -9/Mines | Learned Materials garrison access intel 2047 | -9/Mines | Discovered new exit (range 12) 2262 | -9/Mines | Joined a pair of Derelicts in attacking an 0b10 outpost 2338 | -9/Mines | Found the Drone Emporium 2345 | -9/Mines | Found Prototype Device 2396 | -9/Mines | Discovered new exit (range 14) 2410 | -9/Mines | Received a Mining Laser from a helpful Derelict 2965 | -9/Mines | Entered Materials 2965 | -8/Materials | Accompanied by 3 allies 2965 | -8/Materials | Evolved 2 slots: Power x1, Utility x1 2965 | -8/Materials | Identified Thief Drone Bay 2967 | -8/Materials | Loaded intel: 1 garrison access location 2979 | -8/Materials | Identified exit to Garrison 2985 | -8/Materials | Entered Garrison 2985 | -8/Garrison | Accompanied by 3 allies 3001 | -8/Garrison | Triggered checkpoint 3121 | -8/Garrison | Triggered checkpoint 3235 | -8/Garrison | Triggered checkpoint 3269 | -8/Garrison | Triggered checkpoint 3360 | -8/Garrison | Installed Relay Interface Framework 3371 | -8/Garrison | Discovered new exit (range 12) 3390 | -8/Garrison | Entered Materials 3390 | -8/Materials | Accompanied by 1 ally 3441 | -8/Materials | Identified exit to Garrison 3441 | -8/Materials | Entered Garrison 3441 | -8/Garrison | Accompanied by 1 ally 3483 | -8/Garrison | Triggered checkpoint 3531 | -8/Garrison | Triggered checkpoint 3565 | -8/Garrison | Discovered new exit (range 6) 3612 | -8/Garrison | Lost 3 parts (1p1n1w) 3821 | -8/Garrison | Triggered checkpoint 3875 | -8/Garrison | Core integrity fell below 50% 3900 | -8/Garrison | Lost 4 parts (1p2n1u) 3927 | -8/Garrison | Triggered checkpoint 3954 | -8/Garrison | Core integrity fell below 20% 3956 | -8/Garrison | Destroyed by P-60 Hacker with Shock Rifle Last Messages --------------- Aluminum Leg destroyed. L-31 Rogue destroyed. Switching to secondary target: L-31 Rogue. Minigun severed. Com. Matter Pod destroyed. L-31 Rogue destroyed. Acquired 34 matter. Acquired Minigun. Acquired 6 matter. Acquired 4 matter. Beams of light sweep through the air. An alarm sounds. Critical hit (Burn: +37). Y-45 Defender destroyed. Switching to secondary target: Y-45 Defender. Critical hit (Burn: +37). Lgt. Nuclear Core destroyed. Minigun destroyed. Com. Matter Pod destroyed. P-60 Hacker destroyed. Map ----- +----------------------------------------------------+ | ?????????????????????????????????????????????????? | | ?????????????????????????????????????????????????? | | ?????????????????????????????????????????????????? | | ?????????????????????????????????????????????????? | | ?????????????????????????????????????????????????? | | ?????????????????????????????????????????????????? | | ?????????????????????????????????????????????????? | | ?????????????????????????????????????????????????? | | ?????????????????????????????????????????????????? | | ?????????????????????????????????????????????????? | | ??????????????????????? ???????????????????????? | | ??????????????????????# #??????????????????????? | | ??????????????????????# ????? ????????????????? | | ??????????????????????# ???? ???????????????? | | ??????????????????????# ???? ??? ????????????? | | ??????????????????????# #??? #?? ????????????? | | ????????????????????### ##?? ## #???????????? | | ????????????????????# ? g "???????????? | | ????????????????????? ? ????????????? | | ????????????????????? ? g ?????????????? | | ?????????????????????? ? ???????????????? | | ??????????????????????# #??? #???????????? | | ????????????????????### #[% ## ###?????????? | | ????????????????????? ; p% ????????? | | ??????????????????????# [ ????????? | | ??????????????????????# @ !%* #???????????? | | ??????????????????????# ## = Y##???????????????? | | ??????????????????????# #?????#????????????????? | | ??????????????????????# #??????????????????????? | | ??????????????????????# #??????????????????????? | | ??????????????????????# % #??????????????????????? | | ??????????????????????# = #??????????????????????? | | ??????????????????????#%[=#??????????????????????? | | #######################^=^#??????????????????????? | | ! = ==%%#??????????????????????? | | *%^ [ #??????????????????????? | | =!^ #??????????????????????? | | ############## ###########??????????????????????? | | ?????????????# !###??????????????????????????????? | | ?????????????# #??????????????????????????????? | | ?????????????# [%#??????????????????????????????? | | ?????????????# #??????????????????????????????? | | ?????????????# ###??????????????????????????????? | | ?????????????# #????????????????????????????????? | | ?????????????# #????????????????????????????????? | | ?????????????# ###??????????????????????????????? | | ?????????????# #"#??????????????????????????????? | | ?????????????# "#??????????????????????????????? | | ?????????????# "#??????????????????????????????? | | ?????????????# "#??????????????????????????????? | +----------------------------------------------------+ Best States ------------- Heat Dissipation 31 Energy Generation 23 Energy Capacity 250 Matter Stores 560 Matter Capacity 600 Sight Range 16 Terrain Scan Density 10 Evasion (%) 55 Targeting Accuracy 16 Recoil Reduction 2 Item Schematics ----------------- None Robot Schematics ------------------ None Fabricated ------------ Nothing Repaired ---------- Nothing Alien Tech Used ----------------- None Achievements -------------- None Challenges ------------ None Game ------ Seed WeightHardcellRipper Manual? 0 Play Time 00:28:02 Cumulative 63.7 hours Start 2025.07.22 @ 09:50:04 End 2025.07.22 @ 10:14:29 Sessions 1 Manual Loads 0 Difficulty Rogue Special Mode None Game No. 269 Rogue 269 Adventurer 0 Explorer 0 Win Type - Total 0 Types 0/0/0/0/0/0/0/0/0/0 Lore% 43 Gallery% 31 Achievement% 25 Wizard Run 0 Options --------- Layout 2 ASCII 0 Keyboard 0 Movement Mouse Keybinds 0 Fullscreen 1 Font 24/Terminus Map View 50x44 Zoom Use 0% Tactical HUD 0 Map Filters NONE Filters NONE Steam 1 RUN: cbc43211-3a3d-4bb2-b4c1-2c61cf9250f2